[Event "FIDE WCCC Open-10 2024"]
[Site "Montesilvano"]
[Date "2024.11.22"]
[Round "7.1"]
[White "Kolodziejczyk, Boris"]
[Black "Shogdzhiev, Roman"]
[Result "0-1"]
[Annotator "RC"]
[ECO "B51"]
[WhiteElo "2115"]
[BlackElo "2202"]
[PlyCount "103"]
[EventDate "2024.11.18"]
[EventType "swiss"]
[EventCountry "ITA"]
[SourceTitle "playchess.com"]
[Source "ChessBase"]
[SourceQuality "1"]
[TimeControl "5400+30"]

1. e4 {[%emt 0:00:04]} c5 {[%emt 0:00:02]} 2. Nf3 {[%emt 0:00:08]} d6 {[%emt 0:00:04]} 3. Bb5+ {[%emt 0:00:12]} Nd7 {[%emt 0:00:01]} 4. O-O {[%emt 0:00:21]} a6 {[%emt 0:00:03]} 5. Bd3 {[%emt 0:00:18]} g6 {[%emt 0:00:01]} 6. c3 {[%emt 0:00:24]} Bg7 {[%emt 0:00:00]} 7. Bc2 {[%emt 1:32:33]} Ne5 8. Nxe5 {[%emt 0:00:00]} dxe5 {[%emt 0:00:05]} 9. d3 {[%emt 0:00:00]} Nf6 {[%emt 0:00:09]} 10. Be3 {[%emt 0:00:00]} Qc7 {[%emt 0:00:41]} 11. h3 {[%emt 0:00:00]} O-O {[%emt 0:04:26]} 12. a4 {[%emt 0:00:00]} b6 {[%emt 0:00:02]} 13. Na3 {[%emt 0:00:00]} Rd8 {[%emt 0:12:10]} 14. Qc1 {[%emt 0:00:00]} Nh5 {[%emt 0:02:07]} 15. Nc4 {[%emt 0:00:00]} Be6 {[%emt 0:07:09]} 16. a5 {[%emt 0:00:00]} b5 {[%emt 0:00:59]} 17. Nb6 {[%emt 0:00:00]} Rab8 {[%emt 0:01:03]} 18. b4 {[%emt 0:00:00]} Nf4 {[%emt 0:04:21]} 19. Qb2 {[%emt 0:00:00]} cxb4 {[%emt 0:09:05]} 20. cxb4 {[%emt 0:00:00]} Nxd3 {[%emt 0:08:55]} 21. Bxd3 {[%emt 0:00:00]} Rxd3 {[%emt 0:00:16]} 22. Rfd1 {[%emt 0:00:00]} Rxd1+ {[%emt 0:09:13]} 23. Rxd1 {[%emt 0:00:00]} f5 {[%emt 0:03:15]} 24. Qd2 {[%emt 0:00:00]} fxe4 {[%emt 0:08:27]} 25. Nd5 {[%emt 0:00:00]} Qb7 {[%emt 0:01:59]} 26. Bc5 {[%emt 0:00:00]} Kf7 {[%emt 0:06:53]} 27. Nc3 {[%emt 0:00:00]} h6 {[%emt 0:03:45]} 28. Qe3 {[%emt 0:00:00]} Bf5 {[%emt 0:00:35]} 29. g4 {[%emt 0:00:00]} Be6 {[%emt 0:01:13]} 30. Nxe4 {[%emt 0:00:38]} Bd5 {[%emt 0:03:04]} 31. Ng3 {[%emt 0:01:40]} Bf6 {[%emt 0:01:07]} 32. Qd3 {[%emt 0:02:09]} e6 {[%emt 0:00:52]} 33. Qe3 {[%emt 0:00:49]} Rd8 {[%emt 0:04:30]} 34. Kh2 {[%emt 0:01:28]} Kg7 {[%emt 0:00:24]} 35. f3 {[%emt 0:00:53]} Bxf3 {[%emt 0:01:59]} 36. Rxd8 {[%emt 0:00:15]} Bxd8 {[%emt 0:00:07]} 37. Qxe5+ {[%emt 0:07:08]} Bf6 38. Qxe6 {[%emt 0:00:00]} Qf7 {[%emt 0:00:07]} 39. Qxf7+ {[%emt 0:00:00]} Kxf7 {[%emt 0:00:00]} 40. Kg1 {[%emt 0:00:00]} Ke6 {[%emt 0:05:51]} 41. Kf2 {[%emt 0:00:00]} Bb7 {[%emt 0:00:34]} 42. Ke3 {[%emt 0:00:00]} Bg5+ {[%emt 0:01:44]} 43. Kd3 {[%emt 0:00:00]} Bg2 {[%emt 0:00:35]} 44. Ne4 {[%emt 0:00:13]} Bf4 {[%emt 0:02:25]} 45. Be3 {[%emt 0:01:18]} Bxe4+ {[%emt 0:00:45]} 46. Kxe4 {[%emt 0:00:01]} Bxe3 {[%emt 0:00:07]} 47. Kxe3 {[%emt 0:00:04]} Kd5 {[%emt 0:00:15]} 48. g5 {[%emt 0:01:43]} hxg5 {[%emt 0:00:27]} 49. Kd3 {[%emt 0:00:45]} g4 {[%emt 0:00:10]} 50. hxg4 {[%emt 0:00:05]} g5 {[%emt 0:00:00]} 51. Kc3 {[%emt 0:00:38]} Ke4 {[%emt 0:00:06]} 52. Kb3 {[%emt 0:02:43]} 0-1

[Event "FIDE WCCC Open-10 2024"]
[Site "Montesilvano"]
[Date "2024.11.22"]
[Round "7.1"]
[White "Roth, Elai"]
[Black "Lee, Yugeon"]
[Result "0-1"]
[Annotator "NA RC"]
[ECO "C56"]
[WhiteElo "1577"]
[BlackElo "1690"]
[PlyCount "54"]
[EventDate "2024.11.18"]
[EventType "swiss"]
[EventCountry "ITA"]
[SourceTitle "playchess.com"]
[Source "ChessBase"]
[SourceQuality "1"]
[TimeControl "5400+30"]

1. e4 e5 2. Nf3 Nc6 3. Bc4 Nf6 4. d4 exd4 5. O-O Bc5 6. e5 d5 7. exf6 dxc4 8. Re1+ Be6 9. Ng5 Qd5 10. Nc3 Qf5 11. Nce4 Bb6 12. g4 Qg6 13. f4 gxf6 14. f5 Qg7 15. Nxe6 fxe6 16. Nxf6+ Kd8 17. Rxe6 d3+ 18. Kh1 Nd4 19. Nh5 dxc2 20. Qg1 Qd7 21. Bg5+ Kc8 22. Re7 Nf3 23. Rxd7 Bxg1 24. Rg7 Nxg5 25. Kxg1 Rd8 26. Nf6 Rd1+ 27. Kf2 b6 0-1

[Event "FIDE WCCC Open-10 2024"]
[Site "Montesilvano"]
[Date "2024.11.22"]
[Round "7.2"]
[White "Llari, Marc"]
[Black "Ling, Chenxuan"]
[Result "1-0"]
[Annotator "RC"]
[ECO "D38"]
[WhiteElo "2201"]
[BlackElo "1967"]
[PlyCount "87"]
[EventDate "2024.11.18"]
[EventType "swiss"]
[EventCountry "ITA"]
[SourceTitle "playchess.com"]
[Source "ChessBase"]
[SourceQuality "1"]
[TimeControl "5400+30"]

1. d4 {[%emt 0:00:01]} Nf6 {[%emt 0:00:04]} 2. c4 {[%emt 0:00:04]} e6 {[%emt 0:00:04]} 3. Nf3 {[%emt 0:00:04]} d5 {[%emt 0:00:04]} 4. Nc3 {[%emt 0:00:06]} Bb4 {[%emt 0:00:04]} 5. Qa4+ {[%emt 0:00:14]} Nc6 {[%emt 0:00:05]} 6. e3 {[%emt 0:00:46]} O-O {[%emt 0:01:36]} 7. Qc2 {[%emt 0:00:20]} dxc4 {[%emt 0:00:35]} 8. Bxc4 {[%emt 0:00:51]} Bd6 {[%emt 0:00:09]} 9. O-O {[%emt 0:01:05]} e5 {[%emt 0:00:14]} 10. h3 {[%emt 0:01:07]} exd4 {[%emt 0:03:15]} 11. exd4 {[%emt 0:00:25]} h6 {[%emt 0:00:17]} 12. Re1 {[%emt 0:25:02]} Na5 {[%emt 0:08:14]} 13. Bd3 {[%emt 0:04:19]} Be6 {[%emt 0:06:32]} 14. Ne5 {[%emt 0:07:22]} Nc6 {[%emt 0:08:04]} 15. Nxc6 {[%emt 0:06:30]} bxc6 {[%emt 0:00:05]} 16. Bf5 {[%emt 0:05:29]} Bxf5 {[%emt 0:10:56]} 17. Qxf5 {[%emt 0:00:03]} Nd5 {[%emt 0:00:36]} 18. Bd2 {[%emt 0:05:46]} Qf6 {[%emt 0:06:54]} 19. Qxf6 {[%emt 0:01:04]} Nxf6 {[%emt 0:00:02]} 20. Na4 {[%emt 0:01:41]} Rab8 {[%emt 0:10:19]} 21. Rac1 {[%emt 0:04:25]} Nd5 {[%emt 0:06:11]} 22. Rxc6 {[%emt 0:08:24]} Nb4 {[%emt 0:01:20]} 23. Bxb4 {[%emt 0:00:54]} Rxb4 {[%emt 0:00:06]} 24. Ra6 {[%emt 0:00:09]} Rxd4 {[%emt 0:00:25]} 25. Rxa7 {[%emt 0:00:26]} Kh7 {[%emt 0:00:34]} 26. Nc3 {[%emt 0:03:08]} Rb8 {[%emt 0:01:58]} 27. Re2 {[%emt 0:02:34]} Rdb4 {[%emt 0:02:17]} 28. b3 {[%emt 0:00:36]} Rd4 {[%emt 0:01:01]} 29. g3 {[%emt 0:01:46]} f5 {[%emt 0:01:09]} 30. Kg2 {[%emt 0:01:10]} f4 {[%emt 0:01:56]} 31. gxf4 {[%emt 0:00:43]} Rxf4 {[%emt 0:01:20]} 32. Ne4 {[%emt 0:01:04]} Be5 {[%emt 0:04:26]} 33. Ng5+ {[%emt 0:01:40]} hxg5 {[%emt 0:00:12]} 34. Rxe5 {[%emt 0:00:03]} Rbf8 {[%emt 0:00:09]} 35. Re2 {[%emt 0:00:07]} g4 {[%emt 0:04:55]} 36. h4 {[%emt 0:01:27]} c5 {[%emt 0:02:28]} 37. Rc7 {[%emt 0:00:26]} R8f5 {[%emt 0:00:40]} 38. Rc2 {[%emt 0:00:27]} Kh6 {[%emt 0:00:53]} 39. R7xc5 {[%emt 0:00:30]} Rxf2+ {[%emt 0:00:10]} 40. Rxf2 {[%emt 0:00:04]} Rxc5 {[%emt 0:00:04]} 41. b4 {[%emt 0:00:11]} Rc1 {[%emt 0:00:54]} 42. Rb2 {[%emt 0:00:07]} Kh5 {[%emt 0:00:44]} 43. b5 {[%emt 0:00:08]} Kxh4 {[%emt 0:00:44]} 44. b6 {[%emt 0:00:05]} 1-0

[Event "FIDE WCCC Open-10 2024"]
[Site "Montesilvano"]
[Date "2024.11.22"]
[Round "7.2"]
[White "Mariani, Kim Paul"]
[Black "Kaloh, Edvard"]
[Result "1-0"]
[Annotator "NA RC"]
[ECO "B07"]
[WhiteElo "1814"]
[BlackElo "1506"]
[PlyCount "71"]
[EventDate "2024.11.18"]
[EventType "swiss"]
[EventCountry "ITA"]
[SourceTitle "playchess.com"]
[Source "ChessBase"]
[SourceQuality "1"]
[TimeControl "5400+30"]

1. e4 {[%emt 0:00:04]} c5 {[%emt 0:04:37]} 2. Nf3 {[%emt 0:00:23]} g6 {[%emt 0:00:06]} 3. c3 {[%emt 0:01:45]} Bg7 {[%emt 0:00:23]} 4. d4 {[%emt 0:00:27]} cxd4 {[%emt 0:01:20]} 5. cxd4 {[%emt 0:00:30]} Nf6 {[%emt 0:00:52]} 6. Nc3 {[%emt 0:01:41]} d6 {[%emt 0:00:36]} 7. Bd3 {[%emt 0:07:32]} Bg4 {[%emt 0:03:46]} 8. h3 {[%emt 0:01:01]} Bxf3 {[%emt 0:00:11]} 9. Qxf3 {[%emt 0:00:02]} Nc6 {[%emt 0:00:11]} 10. Be3 {[%emt 0:03:52]} Rc8 {[%emt 0:04:07]} 11. Rd1 {[%emt 0:08:46]} O-O {[%emt 0:02:27]} 12. O-O {[%emt 0:00:19]} Qa5 {[%emt 0:01:02]} 13. Rfe1 {[%emt 0:04:21]} Nb4 {[%emt 0:06:31]} 14. Bb1 {[%emt 0:02:03]} Rxc3 {[%emt 0:08:23]} 15. bxc3 {[%emt 0:02:22]} Nxa2 {[%emt 0:00:10]} 16. Bxa2 {[%emt 0:03:04]} Qxa2 {[%emt 0:00:43]} 17. Ra1 {[%emt 0:00:19]} Qc4 {[%emt 0:00:31]} 18. Rxa7 {[%emt 0:00:44]} Qxc3 {[%emt 1:03:34]} 19. Rc1 {[%emt 0:01:42]} Qb4 {[%emt 0:00:00]} 20. e5 {[%emt 0:06:33]} dxe5 {[%emt 0:00:00]} 21. dxe5 {[%emt 0:00:07]} Ne4 {[%emt 0:00:00]} 22. Qd1 {[%emt 0:02:42]} Nc3 {[%emt 0:00:00]} 23. Qe1 {[%emt 0:01:11]} Nd5 {[%emt 0:00:00]} 24. Qxb4 {[%emt 0:00:38]} Nxb4 {[%emt 0:00:00]} 25. Rxb7 {[%emt 0:00:29]} Nd5 {[%emt 0:00:00]} 26. Bd4 {[%emt 0:02:53]} e6 {[%emt 0:00:00]} 27. g3 {[%emt 0:05:09]} Ra8 {[%emt 0:00:00]} 28. Rcb1 {[%emt 0:01:51]} Bf8 {[%emt 0:00:00]} 29. Rd7 {[%emt 0:03:53]} Ra4 {[%emt 0:00:00]} 30. Ba7 {[%emt 0:00:31]} Nc3 {[%emt 0:00:00]} 31. Rbb7 {[%emt 0:01:08]} Ra1+ {[%emt 0:00:00]} 32. Kg2 {[%emt 0:03:14]} Ne2 {[%emt 0:00:00]} 33. Rxf7 {[%emt 0:01:20]} Rg1+ {[%emt 0:00:00]} 34. Kf3 {[%emt 0:02:31]} Nc3 {[%emt 0:00:00]} 35. Rfc7 {[%emt 0:01:18]} Nd5 {[%emt 0:00:00]} 36. Rc8 {[%emt 0:00:06]} 1-0

[Event "FIDE WCCC Open-10 2024"]
[Site "Montesilvano"]
[Date "2024.11.22"]
[Round "7.3"]
[White "Anand, Tsogtbileg"]
[Black "Advik Amit Agrawal"]
[Result "0-1"]
[Annotator "NA RC"]
[ECO "E07"]
[WhiteElo "1974"]
[BlackElo "1982"]
[PlyCount "148"]
[EventDate "2024.11.18"]
[EventType "swiss"]
[EventCountry "ITA"]
[SourceTitle "playchess.com"]
[Source "ChessBase"]
[SourceQuality "1"]
[TimeControl "5400+30"]

1. Nf3 {[%emt 0:00:30]} e6 {[%emt 0:00:52]} 2. g3 {[%emt 0:02:11]} d5 {[%emt 0:00:29]} 3. Bg2 {[%emt 0:00:50]} Nf6 {[%emt 0:00:09]} 4. O-O {[%emt 0:01:02]} Be7 {[%emt 0:00:15]} 5. d4 {[%emt 0:01:10]} O-O {[%emt 0:00:08]} 6. c4 {[%emt 0:00:29]} Nbd7 {[%emt 0:01:37]} 7. Nc3 {[%emt 0:01:58]} dxc4 {[%emt 0:03:55]} 8. e3 {[%emt 0:10:18]} c5 {[%emt 0:04:56]} 9. Qe2 {[%emt 0:01:25]} a6 {[%emt 0:02:33]} 10. dxc5 {[%emt 0:03:26]} Nxc5 {[%emt 0:02:13]} 11. Rd1 {[%emt 0:00:41]} Qc7 {[%emt 0:02:35]} 12. Qxc4 {[%emt 0:07:53]} b5 {[%emt 0:00:45]} 13. Qf4 {[%emt 0:00:09]} Qxf4 {[%emt 0:00:22]} 14. exf4 {[%emt 0:00:09]} Bb7 {[%emt 0:00:12]} 15. Ne5 {[%emt 0:02:22]} Rac8 {[%emt 0:17:54]} 16. Be3 {[%emt 0:04:22]} Bxg2 {[%emt 0:01:25]} 17. Kxg2 {[%emt 0:00:09]} b4 {[%emt 0:03:59]} 18. Ne2 {[%emt 0:02:25]} Rc7 {[%emt 0:13:55]} 19. Rac1 {[%emt 0:01:35]} Rfc8 {[%emt 0:01:24]} 20. Rc4 {[%emt 0:04:46]} Nd5 {[%emt 0:02:29]} 21. b3 {[%emt 0:05:32]} f6 {[%emt 0:07:07]} 22. Nf3 {[%emt 0:00:25]} Kf7 {[%emt 0:01:11]} 23. Rdc1 {[%emt 0:01:48]} Nd3 {[%emt 0:02:20]} 24. Rxc7 {[%emt 0:03:48]} Rxc7 {[%emt 0:00:01]} 25. Rxc7 {[%emt 0:00:12]} Nxc7 {[%emt 0:00:01]} 26. Nc1 {[%emt 0:00:25]} Nxc1 {[%emt 0:00:51]} 27. Bxc1 {[%emt 0:00:05]} Nb5 {[%emt 0:00:40]} 28. Bb2 {[%emt 0:05:16]} Bc5 {[%emt 0:05:11]} 29. g4 {[%emt 0:07:41]} Bd6 {[%emt 0:01:02]} 30. f5 {[%emt 0:03:52]} exf5 {[%emt 0:00:04]} 31. gxf5 {[%emt 0:00:05]} Bc5 {[%emt 0:00:35]} 32. Ne1 {[%emt 0:02:05]} a5 {[%emt 0:01:56]} 33. Nd3 {[%emt 0:00:26]} Bb6 {[%emt 0:02:12]} 34. Kf3 {[%emt 0:05:24]} Nd6 {[%emt 0:02:06]} 35. Kg4 {[%emt 0:01:25]} Ba7 {[%emt 0:03:25]} 36. a3 {[%emt 0:03:57]} bxa3 {[%emt 0:00:12]} 37. Bxa3 {[%emt 0:00:09]} Ne4 {[%emt 0:00:08]} 38. b4 {[%emt 0:06:49]} a4 {[%emt 0:02:37]} 39. Nb2 {[%emt 0:03:38]} Nc3 {[%emt 0:00:15]} 40. f3 {[%emt 0:02:01]} Nb5 {[%emt 0:03:00]} 41. Nc4 {[%emt 0:00:07]} Bb8 {[%emt 0:00:50]} 42. Bc1 {[%emt 0:06:48]} Bxh2 {[%emt 0:01:21]} 43. f4 {[%emt 0:00:27]} Bg1 {[%emt 0:00:30]} 44. Na3 {[%emt 0:00:14]} Nd6 {[%emt 0:01:05]} 45. Nc2 {[%emt 0:00:51]} Bb6 {[%emt 0:00:42]} 46. Na3 {[%emt 0:00:35]} Bd4 {[%emt 0:00:28]} 47. Nc2 {[%emt 0:00:53]} Bc3 {[%emt 0:00:31]} 48. Kf3 {[%emt 0:00:37]} h5 {[%emt 0:01:49]} 49. b5 {[%emt 0:00:57]} Nxb5 {[%emt 0:00:11]} 50. Kg3 {[%emt 0:00:08]} Nd6 {[%emt 0:00:48]} 51. Kh4 {[%emt 0:00:28]} Nxf5+ {[%emt 0:00:12]} 52. Kxh5 {[%emt 0:00:06]} g6+ {[%emt 0:00:28]} 53. Kg4 {[%emt 0:00:06]} Ke6 {[%emt 0:00:32]} 54. Na3 {[%emt 0:00:55]} Bb4 {[%emt 0:00:40]} 55. Nb5 {[%emt 0:00:17]} Kd5 {[%emt 0:00:28]} 56. Nc7+ {[%emt 0:00:09]} Ke4 {[%emt 0:00:20]} 57. Bb2 {[%emt 0:00:35]} Nh6+ {[%emt 0:00:28]} 58. Kh3 {[%emt 0:00:28]} f5 {[%emt 0:00:23]} 59. Kh4 {[%emt 0:00:34]} Be7+ {[%emt 0:00:08]} 60. Kh3 {[%emt 0:00:08]} a3 {[%emt 0:00:37]} 61. Bc1 {[%emt 0:00:16]} a2 {[%emt 0:00:34]} 62. Bb2 {[%emt 0:00:23]} Ng4 {[%emt 0:00:33]} 63. Nb5 {[%emt 0:00:06]} Bb4 {[%emt 0:00:44]} 64. Bc3 {[%emt 0:00:12]} Ne3 {[%emt 0:00:39]} 65. Kh4 {[%emt 0:00:32]} Nd5 {[%emt 0:00:12]} 66. Bb2 {[%emt 0:00:29]} Nxf4 {[%emt 0:00:07]} 67. Kg5 {[%emt 0:00:08]} Be7+ {[%emt 0:00:38]} 68. Kh6 {[%emt 0:00:07]} g5 {[%emt 0:00:34]} 69. Nc3+ {[%emt 0:00:05]} Kf3 {[%emt 0:00:07]} 70. Nxa2 {[%emt 0:00:23]} g4 {[%emt 0:00:07]} 71. Bc1 {[%emt 0:00:11]} Ne2 {[%emt 0:00:09]} 72. Bd2 {[%emt 0:00:10]} g3 {[%emt 0:00:08]} 73. Ba5 {[%emt 0:00:04]} Bc5 {[%emt 0:00:17]} 74. Bc7 {[%emt 0:00:07]} f4 {[%emt 0:00:09]} 0-1

[Event "FIDE WCCC Open-10 2024"]
[Site "Montesilvano"]
[Date "2024.11.22"]
[Round "7.3"]
[White "Hochman, Gur"]
[Black "Gusev, Daniil Den"]
[Result "0-1"]
[Annotator "NA RC"]
[ECO "A08"]
[WhiteElo "1626"]
[BlackElo "1863"]
[PlyCount "71"]
[EventDate "2024.11.18"]
[EventType "swiss"]
[EventCountry "ITA"]
[SourceTitle "playchess.com"]
[Source "ChessBase"]
[SourceQuality "1"]
[TimeControl "5400+30"]

1. e4 {[%emt 0:00:03]} e6 {[%emt 0:00:36]} 2. d3 {[%emt 0:00:09]} c5 {[%emt 0:00:14]} 3. Nf3 {[%emt 0:00:19]} Nc6 {[%emt 0:00:46]} 4. g3 {[%emt 0:00:13]} Nf6 {[%emt 0:00:53]} 5. Bg2 {[%emt 0:00:13]} d5 {[%emt 0:00:23]} 6. Nbd2 {[%emt 0:00:19]} g6 {[%emt 0:00:40]} 7. O-O {[%emt 0:00:19]} Bg7 {[%emt 0:00:14]} 8. Re1 {[%emt 0:00:39]} O-O {[%emt 0:00:18]} 9. c3 {[%emt 0:00:19]} a5 {[%emt 0:00:56]} 10. e5 {[%emt 0:01:09]} Nd7 {[%emt 0:00:43]} 11. d4 {[%emt 0:00:13]} b6 {[%emt 0:02:01]} 12. Nf1 {[%emt 0:01:13]} cxd4 {[%emt 0:01:51]} 13. cxd4 {[%emt 0:00:17]} f6 {[%emt 0:00:45]} 14. exf6 {[%emt 0:00:53]} Qxf6 {[%emt 0:00:44]} 15. Bg5 {[%emt 0:01:40]} Qf7 {[%emt 0:02:12]} 16. Qd2 {[%emt 0:03:07]} Nf6 {[%emt 0:08:25]} 17. Be3 {[%emt 0:07:04]} Ne4 {[%emt 0:03:41]} 18. Qe2 {[%emt 0:01:56]} Ba6 $17 {[%emt 0:01:51]} 19. Qd1 {[%emt 0:01:27]} Nb4 {[%emt 0:15:30]} 20. N1d2 {[%emt 0:10:29]} Nd6 {[%emt 0:13:17]} 21. Bf4 {[%emt 0:21:15]} Qd7 {[%emt 0:03:05]} 22. Ng5 {[%emt 0:02:10]} Rae8 {[%emt 0:01:56]} 23. Bxd6 {[%emt 0:21:38]} Qxd6 {[%emt 0:00:13]} 24. Qb3 {[%emt 0:04:06]} Bxd4 {[%emt 0:11:46]} 25. Bf3 {[%emt 0:04:48]} h6 {[%emt 0:13:34]} 26. Nh3 {[%emt 0:02:21]} Nd3 {[%emt 0:03:46]} 27. Red1 {[%emt 0:03:02]} Qb4 {[%emt 0:03:56]} 28. Rab1 {[%emt 0:02:20]} a4 {[%emt 0:01:55]} 29. Qxb4 {[%emt 0:00:42]} Nxb4 {[%emt 0:00:07]} 30. Bg2 {[%emt 0:01:43]} Bd3 {[%emt 0:00:49]} 31. Rbc1 {[%emt 0:01:08]} Bxb2 {[%emt 0:01:07]} 32. Bf1 {[%emt 0:01:29]} Bxc1 {[%emt 0:00:51]} 33. Rxc1 {[%emt 0:00:11]} Bxf1 {[%emt 0:00:18]} 34. Kxf1 {[%emt 0:00:18]} Nxa2 {[%emt 0:00:14]} 35. Rb1 {[%emt 0:00:24]} Nc3 {[%emt 0:00:19]} 36. Ra1 {[%emt 0:08:54]} 0-1

[Event "FIDE WCCC Open-10 2024"]
[Site "Montesilvano"]
[Date "2024.11.22"]
[Round "7.4"]
[White "Sameh Mohamed, Abdalrahman"]
[Black "Nguyen Quang Anh"]
[Result "0-1"]
[Annotator "RC"]
[ECO "C02"]
[WhiteElo "2238"]
[BlackElo "1889"]
[PlyCount "86"]
[EventDate "2024.11.18"]
[EventType "swiss"]
[EventCountry "ITA"]
[SourceTitle "playchess.com"]
[Source "ChessBase"]
[SourceQuality "1"]
[TimeControl "5400+30"]

1. e4 {[%emt 0:00:03]} e6 {[%emt 0:00:13]} 2. d4 {[%emt 0:00:05]} d5 {[%emt 0:00:19]} 3. e5 {[%emt 0:00:02]} c5 {[%emt 0:00:15]} 4. c3 {[%emt 0:00:05]} Nc6 {[%emt 0:00:09]} 5. Nf3 {[%emt 0:00:06]} Qb6 {[%emt 0:00:34]} 6. a3 {[%emt 0:00:05]} cxd4 {[%emt 0:00:42]} 7. cxd4 {[%emt 0:00:06]} Nh6 {[%emt 0:00:29]} 8. Bd3 {[%emt 0:00:11]} Nf5 {[%emt 0:00:48]} 9. Bxf5 {[%emt 0:00:22]} exf5 {[%emt 0:00:08]} 10. Nc3 {[%emt 0:00:07]} Be6 {[%emt 0:00:35]} 11. O-O {[%emt 0:00:12]} Be7 {[%emt 0:00:41]} 12. b4 {[%emt 0:00:05]} h6 {[%emt 0:02:25]} 13. Bb2 {[%emt 0:12:19]} g5 {[%emt 0:15:12]} 14. Na4 {[%emt 0:00:20]} Qd8 {[%emt 0:02:50]} 15. Nd2 {[%emt 0:02:16]} b5 {[%emt 0:06:42]} 16. Rc1 {[%emt 0:13:07]} bxa4 {[%emt 0:16:32]} 17. Rxc6 {[%emt 0:00:54]} Bd7 {[%emt 0:00:36]} 18. Rc5 {[%emt 0:12:35]} Bxc5 {[%emt 0:02:04]} 19. dxc5 {[%emt 0:00:07]} O-O {[%emt 0:11:19]} 20. Nf3 {[%emt 0:01:03]} a5 {[%emt 0:01:40]} 21. Nd4 {[%emt 0:01:01]} axb4 {[%emt 0:01:24]} 22. axb4 {[%emt 0:00:20]} Qb8 {[%emt 0:00:44]} 23. e6 {[%emt 0:28:21]} Qxb4 {[%emt 0:05:31]} 24. exd7 {[%emt 0:05:46]} Qxb2 {[%emt 0:00:57]} 25. c6 {[%emt 0:00:08]} a3 {[%emt 0:01:05]} 26. c7 {[%emt 0:01:35]} Rac8 {[%emt 0:29:36]} 27. d8=Q {[%emt 0:15:36]} Rfxd8 {[%emt 0:00:00]} 28. cxd8=Q+ {[%emt 0:00:16]} Rxd8 {[%emt 0:00:00]} 29. Qa1 {[%emt 0:04:09]} Rb8 {[%emt 0:00:00]} 30. g3 {[%emt 0:00:47]} a2 {[%emt 0:00:00]} 31. Kg2 {[%emt 0:00:55]} Qb1 {[%emt 0:00:00]} 32. Rc1 {[%emt 0:02:30]} Qe4+ {[%emt 0:00:00]} 33. f3 {[%emt 0:00:44]} Qb1 {[%emt 0:00:00]} 34. Nc2 {[%emt 0:00:36]} Rb2 {[%emt 0:00:00]} 35. Kh3 {[%emt 0:00:12]} Qxa1 {[%emt 0:00:00]} 36. Nxa1 {[%emt 0:00:17]} Rb1 {[%emt 0:00:00]} 37. Rc8+ {[%emt 0:00:24]} Kg7 {[%emt 0:00:00]} 38. Nc2 {[%emt 0:00:08]} Rc1 {[%emt 0:00:00]} 39. Ra8 {[%emt 0:00:43]} Rxc2 {[%emt 0:00:00]} 40. g4 {[%emt 0:00:16]} d4 {[%emt 0:00:00]} 41. f4 {[%emt 0:00:52]} d3 {[%emt 0:00:00]} 42. fxg5 {[%emt 0:00:33]} hxg5 {[%emt 0:00:00]} 43. Ra5 {[%emt 0:00:51]} d2 {[%emt 0:00:00]} 0-1

[Event "FIDE WCCC Open-10 2024"]
[Site "Montesilvano"]
[Date "2024.11.22"]
[Round "7.4"]
[White "Ismailov, Omarbek"]
[Black "Fattori Dittmar, Luca"]
[Result "1-0"]
[Annotator "NA RC"]
[ECO "E61"]
[WhiteElo "1625"]
[BlackElo "1766"]
[PlyCount "63"]
[EventDate "2024.11.18"]
[EventType "swiss"]
[EventCountry "ITA"]
[SourceTitle "playchess.com"]
[Source "ChessBase"]
[SourceQuality "1"]
[TimeControl "5400+30"]

1. d4 {[%emt 0:00:05]} Nf6 {[%emt 0:00:10]} 2. Bf4 {[%emt 0:00:13]} g6 {[%emt 0:00:11]} 3. e3 {[%emt 0:00:18]} Bg7 {[%emt 0:00:10]} 4. Nf3 {[%emt 0:00:18]} O-O {[%emt 0:00:16]} 5. c4 {[%emt 0:00:18]} d6 {[%emt 0:00:29]} 6. Nc3 {[%emt 0:00:23]} Nbd7 {[%emt 0:02:03]} 7. Be2 {[%emt 0:02:29]} Qe8 {[%emt 0:02:13]} 8. h3 {[%emt 0:06:34]} e5 {[%emt 0:00:36]} 9. dxe5 {[%emt 0:00:09]} dxe5 {[%emt 0:01:23]} 10. Bh2 {[%emt 0:00:10]} Qe7 {[%emt 0:02:54]} 11. O-O {[%emt 0:00:54]} c6 {[%emt 0:01:03]} 12. Qc2 {[%emt 0:03:50]} Ne8 {[%emt 0:02:33]} 13. Rfd1 {[%emt 0:07:39]} f5 {[%emt 0:02:22]} 14. a3 {[%emt 0:06:27]} e4 {[%emt 0:02:43]} 15. Nd4 {[%emt 0:00:22]} Be5 {[%emt 1:18:54]} 16. b4 {[%emt 0:03:06]} Bxh2+ {[%emt 0:00:00]} 17. Kxh2 {[%emt 0:00:20]} Ne5 {[%emt 0:00:00]} 18. c5 {[%emt 0:02:56]} Ng7 {[%emt 0:00:00]} 19. a4 {[%emt 0:04:08]} Ne6 {[%emt 0:00:00]} 20. Kh1 {[%emt 0:08:22]} Kh8 {[%emt 0:00:00]} 21. Qb2 {[%emt 0:01:06]} Nxd4 {[%emt 0:00:00]} 22. exd4 {[%emt 0:00:08]} Nf7 {[%emt 0:00:00]} 23. d5 {[%emt 0:01:27]} Kg8 {[%emt 0:00:00]} 24. Bc4 {[%emt 0:01:43]} Qh4 {[%emt 0:00:00]} 25. b5 {[%emt 0:01:47]} e3 {[%emt 0:00:00]} 26. Ba2 {[%emt 0:02:19]} f4 {[%emt 0:00:00]} 27. Ne4 {[%emt 0:01:42]} f3 {[%emt 0:00:00]} 28. Nf6+ {[%emt 0:00:22]} Kg7 {[%emt 0:00:00]} 29. Ne8+ {[%emt 0:01:07]} Kh6 {[%emt 0:00:00]} 30. Qg7+ {[%emt 0:00:12]} Kg5 {[%emt 0:00:00]} 31. Qf6+ {[%emt 0:00:23]} Kh5 {[%emt 0:00:00]} 32. Ng7+ {[%emt 0:00:09]} 1-0